fUSD/lending_fUSD_20250202
["ID","MTS","AMOUNT","RATE_DAILY","PERIOD"]
[351276472,1738505478223,-1713.43,0.00011369,2]
[351276473,1738505478232,-500.0,0.00011369,2]
[351276474,1738505478242,-764.96,0.00011369,2]
[351276475,1738505478252,-742.31,0.00011369,2]
[351276476,1738505478261,-585.08,0.00011369,2]
[351276477,1738505478271,-5247.94,0.00011369,2]
[351276478,1738505478281,-5157.65,0.00011369,2]
[351276479,1738505478290,-1545.21,0.00011369,2]
[351276480,1738505478300,-2240.61,0.00011369,2]
[351276481,1738505478310,-500.0,0.00011369,2]
[351276482,1738505478320,-1481.58,0.00011369,2]
[351276483,1738505478330,-535.67,0.00011369,2]
[351276484,1738505478340,-1399.19,0.00011369,2]
[351276485,1738505478350,-1485.26,0.00011369,2]
[351276486,1738505478360,-500.0,0.00011369,2]
[351276487,1738505478370,-3226.98,0.00011369,2]
[351276488,1738505478380,-1311.36,0.00011369,2]
[351276489,1738505478390,-530.72788645,0.00011369,2]
[351276490,1738505478399,-500.0,0.00011369,2]
[351276491,1738505478409,-5680.36,0.00011369,2]
[351276492,1738505478418,-500.0,0.00011369,2]
[351276493,1738505478428,-500.0,0.00011369,2]
[351276494,1738505478438,-2300.21,0.00011369,2]
[351276495,1738505478447,-535.51013263,0.00011369,2]
[351276496,1738505478457,-2521.42,0.00011369,2]
[351276497,1738505478467,-2782.57,0.00011369,2]
[351276498,1738505478477,-1697.0,0.00011369,2]
[351276499,1738505478487,-500.0,0.00011369,2]
[351276500,1738505478496,-500.0,0.00011369,2]
[351276501,1738505478506,-500.0,0.00011369,2]
[351276502,1738505478516,-1766.1,0.00011369,2]
[351276503,1738505478528,-1939.71,0.00011369,2]
[351276504,1738505478538,-500.0,0.00011369,2]
[351276505,1738505478547,-787.48,0.00011369,2]
[351276506,1738505478559,-1300.79,0.00011369,2]
[351276507,1738505478569,-3484.78,0.00011369,2]
[351276508,1738505478578,-500.0,0.00011369,2]
[351276509,1738505478588,-512.49,0.00011369,2]
[351276510,1738505478598,-500.0,0.00011369,2]
[351276511,1738505478608,-500.0,0.00011369,2]
[351276512,1738505478618,-1213.23,0.00011369,2]
[351276513,1738505478628,-500.0,0.00011369,2]
[351276514,1738505478639,-2449.26,0.00011369,2]
[351276515,1738505478649,-5629.82,0.00011369,2]
[351276516,1738505478659,-758.01,0.00011369,2]
[351276517,1738505478669,-500.0,0.00011369,2]
[351276518,1738505478679,-848.99,0.00011369,2]
[351276519,1738505478690,-888.7,0.00011369,2]
[351276520,1738505478700,-500.0,0.00011369,2]
[351276521,1738505478709,-4605.95,0.00011369,2]
[351276522,1738505478719,-2359.63,0.00011369,2]
[351276523,1738505478729,-892.49,0.00011369,2]
[351276524,1738505478739,-871.23,0.00011369,2]
[351276525,1738505478749,-1094.04,0.00011369,2]
[351276526,1738505478759,-6442.67,0.00011369,2]
[351276527,1738505478769,-500.0,0.00011369,2]
[351276528,1738505478778,-1297.27,0.00011369,2]
[351276529,1738505478788,-2052.81,0.00011369,2]
[351276530,1738505478798,-170.54156674,0.00011369,2]
[351276531,1738505478807,-500.0,0.00011369,2]
[351276532,1738505478817,-2655.71,0.00011369,2]
[351276533,1738505478826,-1885.94,0.00011369,2]
[351276534,1738505478836,-500.0,0.00011369,2]
[351276535,1738505478845,-500.0,0.00011369,2]
[351276536,1738505478854,-500.0,0.00011369,2]
[351276537,1738505478864,-10441.41,0.00011369,2]
[351276538,1738505478874,-1553.08,0.00011369,2]
[351276539,1738505478884,-500.0,0.00011369,2]
[351276540,1738505478893,-1012.3,0.00011369,2]
[351276541,1738505478902,-500.0,0.00011369,2]
[351276542,1738505478912,-4514.04,0.00011369,2]
[351276543,1738505478921,-3003.61,0.00011369,2]
[351276544,1738505478931,-2902.94,0.00011369,2]
[351276545,1738505478941,-1964.45,0.00011369,2]
[351276546,1738505478951,-4716.6,0.00011369,2]
[351276547,1738505478960,-500.0,0.00011369,2]
[351276548,1738505478970,-1593.35,0.00011369,2]
[351276549,1738505478980,-500.0,0.00011369,2]
[351276550,1738505478989,-500.0,0.00011369,2]
[351276551,1738505478999,-1637.22,0.00011369,2]
[351276552,1738505479008,-3416.51,0.00011369,2]
[351276553,1738505479018,-882.55,0.00011369,2]
[351276554,1738505479027,-500.0,0.00011369,2]
[351276555,1738505479036,-500.0,0.00011369,2]
[351276556,1738505479046,-4127.67,0.00011369,2]
[351276557,1738505479055,-500.0,0.00011369,2]
[351276558,1738505479065,-9172.95,0.00011369,2]
[351276559,1738505479075,-716.69,0.00011369,2]
[351276560,1738505479084,-500.0,0.00011369,2]
[351276561,1738505479094,-500.0,0.00011369,2]
[351276562,1738505479104,-500.0,0.00011369,2]
[351276563,1738505479115,-3935.05,0.00011369,2]
[351276564,1738505479125,-994.51,0.00011369,2]
[351276565,1738505479135,-500.0,0.00011369,2]
[351276566,1738505479144,-2231.33,0.00011369,2]
[351276567,1738505479154,-500.0,0.00011369,2]
[351276568,1738505479163,-646.36,0.00011369,2]
[351276569,1738505479173,-612.75,0.00011369,2]
[351276570,1738505479182,-7703.46,0.00011369,2]
[351276571,1738505479192,-6130.86,0.00011369,2]
[351276572,1738505479202,-1008.29,0.00011369,2]
[351276573,1738505479211,-4888.75,0.00011369,2]
[351276574,1738505479221,-4468.98,0.00011369,2]
[351276575,1738505479231,-874.52,0.00011369,2]
[351276576,1738505479241,-500.0,0.00011369,2]
[351276577,1738505479251,-500.0,0.00011369,2]
[351276578,1738505479261,-518.68785118,0.00011369,2]
[351276579,1738505479271,-527.07824148,0.00011369,2]
[351276580,1738505479281,-7017.85,0.00011369,2]
[351276581,1738505479291,-7067.83,0.00011369,2]
[351276582,1738505479301,-500.0,0.00011369,2]
[351276583,1738505479311,-504.51,0.00011369,2]
[351276584,1738505479321,-1694.57,0.00011369,2]
[351276585,1738505479331,-809.09,0.00011369,2]
[351276586,1738505479341,-500.0,0.00011369,2]
[351276587,1738505479350,-1463.68,0.00011369,2]
[351276588,1738505479360,-500.0,0.00011369,2]
[351276589,1738505479370,-500.0,0.00011369,2]
[351276590,1738505479380,-957.1,0.00011369,2]
[351276591,1738505479390,-500.0,0.00011369,2]
[351276592,1738505479400,-25450.62,0.00011369,2]
[351276593,1738505479411,-5901.35,0.00011369,2]
[351276594,1738505479421,-3194.77,0.00011369,2]
[351276595,1738505479431,-972.11,0.00011369,2]
[351276596,1738505479441,-573.54491266,0.00011369,2]
[351276597,1738505479451,-500.0,0.00011369,2]
[351276598,1738505479461,-500.0,0.00011369,2]
[351276599,1738505479470,-978.28,0.00011369,2]
[351276600,1738505479481,-1927.34,0.00011369,2]
[351276601,1738505479491,-500.0,0.00011369,2]
[351276602,1738505479502,-500.0,0.00011369,2]
[351276603,1738505479512,-1313.38,0.00011369,2]
[351276604,1738505479524,-2290.65,0.00011369,2]
[351276605,1738505479535,-1822.98,0.00011369,2]
[351276606,1738505479545,-500.0,0.00011369,2]
[351276607,1738505479555,-500.0,0.00011369,2]
[351276608,1738505479566,-500.0,0.00011369,2]
[351276609,1738505479577,-778.33,0.00011369,2]
[351276610,1738505479587,-2811.74,0.00011369,2]
[351276611,1738505479598,-500.0,0.00011369,2]
[351276612,1738505479609,-500.0,0.00011369,2]
[351276613,1738505479620,-4241.49,0.00011369,2]
[351276614,1738505479630,-500.0,0.00011369,2]
[351276615,1738505479640,-2753.15,0.00011369,2]
[351276616,1738505479650,-393.71492913,0.00011369,2]
[351276617,1738505479660,-3179.79,0.00011369,2]
[351276618,1738505479670,-11875.49,0.00011369,2]
[351276619,1738505479681,-590.79,0.00011369,2]
[351276620,1738505479691,-500.0,0.00011369,2]
[351276621,1738505479701,-2422.99,0.00011369,2]
[351276622,1738505479710,-500.0,0.00011369,2]
[351276623,1738505479719,-1805.01,0.00011369,2]
[351276624,1738505479731,-500.0,0.00011369,2]
[351276625,1738505479742,-500.0,0.00011369,2]
[351276626,1738505479752,-1720.61,0.00011369,2]
[351276627,1738505479762,-8941.69,0.00011369,2]
[351276628,1738505479772,-890.83,0.00011369,2]
[351276629,1738505479781,-500.0,0.00011369,2]
[351276630,1738505479791,-500.0,0.00011369,2]
[351276631,1738505479801,-924.98,0.00011369,2]
[351276632,1738505479810,-2796.09,0.00011369,2]
[351276633,1738505479820,-500.0,0.00011369,2]
[351276634,1738505479830,-753.96,0.00011369,2]
[351276635,1738505479911,-2827.17,0.00011369,2]
[351276636,1738505479921,-1515.55,0.00011369,2]
[351276637,1738505479930,-500.0,0.00011369,2]
[351276638,1738505479939,-500.0,0.00011369,2]
[351276639,1738505479950,-8022.15,0.00011369,2]
[351276640,1738505479960,-500.0,0.00011369,2]
[351276641,1738505479970,-1171.94,0.00011369,2]
[351276642,1738505479979,-741.26,0.00011369,2]
[351276643,1738505479988,-1314.16,0.00011369,2]
[351276644,1738505479998,-500.0,0.00011369,2]
[351276645,1738505480007,-500.0,0.00011369,2]
[351276646,1738505480016,-500.0,0.00011369,2]
[351276647,1738505480025,-596.08,0.00011369,2]
[351276648,1738505480035,-2587.99,0.00011369,2]
[351276649,1738505480044,-500.0,0.00011369,2]
[351276650,1738505480053,-770.44,0.00011369,2]
[351276651,1738505480062,-3707.36,0.00011369,2]
[351276652,1738505480072,-581.98680542,0.00011369,2]
[351276653,1738505480081,-500.0,0.00011369,2]
[351276654,1738505480091,-500.0,0.00011369,2]
[351276655,1738505480100,-651.22,0.00011369,2]
[351276656,1738505480110,-500.0,0.00011369,2]
[351276657,1738505480119,-500.0,0.00011369,2]
[351276658,1738505480129,-1864.52,0.0001137,2]
[351276659,1738505480138,-1512.68,0.00011404,2]
[351276660,1738505480147,-1656.84,0.00011404,2]
[351276661,1738505480156,-44792.0,0.000115,2]
[351276662,1738505480166,-1198.33,0.00011504,2]
[351276663,1738505480176,-1512.68,0.00011505,2]
[351276664,1738505480186,-1512.68,0.00011505,2]
[351276665,1738505480196,-1512.68,0.00011505,2]
[351276666,1738505480206,-500.0,0.00011505,2]
[351276667,1738505480215,-1198.33,0.00011505,2]
[351276668,1738505480225,-1198.33,0.00011505,2]
[351276669,1738505480234,-1549.91,0.00011505,2]
[351276670,1738505480244,-1549.91,0.00011505,2]
[351276671,1738505480253,-1549.91,0.00011505,2]
[351276672,1738505480263,-3360.44,0.00011505,2]
[351276673,1738505480273,-3360.44,0.00011505,2]
[351276674,1738505480283,-3360.44,0.00011505,2]
[351276675,1738505480292,-1656.84,0.00011505,2]
[351276676,1738505480301,-1656.84,0.00011505,2]
[351276677,1738505480311,-1656.84,0.00011505,2]
[351276678,1738505480321,-300.0,0.00011505,2]
[351276679,1738505480330,-500.0,0.00011506,2]
[351276680,1738505480339,-500.0,0.00011506,2]
[351276681,1738505480349,-500.0,0.00011506,2]
[351276682,1738505480358,-500.0,0.00011506,2]
[351276683,1738505480367,-559.46,0.00011506,2]
[351276684,1738505480376,-500.0,0.00011506,2]
[351276685,1738505480386,-500.0,0.00011506,2]
[351276686,1738505480395,-500.0,0.00011506,2]
[351276687,1738505480404,-803.7,0.00011506,2]
[351276688,1738505480414,-500.0,0.00011506,2]
[351276689,1738505480423,-500.0,0.00011506,2]
[351276690,1738505480432,-500.0,0.00011506,2]
[351276691,1738505480443,-500.0,0.00011506,2]
[351276692,1738505480452,-500.0,0.00011506,2]
[351276693,1738505480461,-801.06,0.00011506,2]
[351276694,1738505480471,-500.0,0.00011506,2]
[351276695,1738505480480,-500.0,0.00011506,2]
[351276696,1738505480490,-773.23,0.00011506,2]
[351276697,1738505480499,-500.0,0.00011506,2]
[351276698,1738505480508,-503.72536715,0.00011506,2]
[351276699,1738505480518,-500.0,0.00011506,2]
[351276700,1738505480533,-759.9,0.00011506,2]
[351276701,1738505480542,-1260.15,0.00011506,2]
[351276702,1738505480551,-589.03,0.00011506,2]
[351276703,1738505480562,-500.0,0.00011506,2]
[351276704,1738505480571,-500.0,0.00011506,2]
[351276705,1738505480580,-500.0,0.00011506,2]
[351276706,1738505480590,-505.31269468,0.00011506,2]
[351276707,1738505480600,-500.0,0.00011506,2]
[351276708,1738505480609,-500.0,0.00011506,2]
[351276709,1738505480619,-500.0,0.00011506,2]
[351276710,1738505480628,-1063.41,0.00011506,2]
[351276711,1738505480637,-673.02,0.00011506,2]
[351276712,1738505480646,-500.0,0.00011506,2]
[351276713,1738505480655,-517.95234875,0.00011506,2]
[351276714,1738505480665,-500.0,0.00011506,2]
[351276715,1738505480675,-500.0,0.00011506,2]
[351276716,1738505480684,-821.68,0.00011506,2]
[351276717,1738505480694,-549.88,0.00011506,2]
[351276718,1738505480703,-500.0,0.00011506,2]
[351276719,1738505480712,-500.0,0.00011506,2]
[351276720,1738505480721,-500.0,0.00011506,2]
[351276721,1738505480730,-703.15,0.00011506,2]
[351276722,1738505480739,-500.0,0.00011506,2]
[351276723,1738505480748,-828.9,0.00011506,2]
[351276724,1738505480757,-252.03416308,0.00011506,2]
[351276725,1738505480767,-500.0,0.00011506,2]
[351276726,1738505480776,-627.47,0.00011506,2]
[351276727,1738505480785,-731.11,0.00011506,2]
[351276728,1738505480794,-500.0,0.00011506,2]
[351276729,1738505480804,-263.04196537,0.00011506,2]
[351276730,1738505480813,-515.90200572,0.00011506,2]
[351276731,1738505480822,-500.0,0.00011506,2]
[351276732,1738505480831,-500.0,0.00011506,2]
[351276733,1738505480842,-500.0,0.00011506,2]
[351276734,1738505480851,-592.69,0.00011506,2]
[351276735,1738505480860,-500.0,0.00011506,2]
[351276736,1738505480869,-151.18867156,0.00011506,2]
[351276737,1738505480878,-500.0,0.00011506,2]
[351276738,1738505480887,-216.17346671,0.00011506,2]
[351276739,1738505480896,-572.52698377,0.00011506,2]
[351276740,1738505480906,-500.0,0.00011506,2]
[351276741,1738505480915,-151.0,0.00011506,2]
[351276742,1738505480924,-151.0,0.00011506,2]
[351276743,1738505480934,-500.0,0.00011506,2]
[351276744,1738505480944,-625.97,0.00011506,2]
[351276745,1738505480953,-500.0,0.00011506,2]
[351276746,1738505480962,-500.0,0.00011506,2]
[351276747,1738505480971,-500.0,0.00011506,2]
[351276748,1738505480981,-500.0,0.00011506,2]
[351276749,1738505480991,-575.95594633,0.00011506,2]
[351276750,1738505481000,-500.0,0.00011506,2]
[351276751,1738505481009,-500.0,0.00011506,2]
[351276752,1738505481018,-500.0,0.00011506,2]
[351276753,1738505481027,-661.86,0.00011506,2]
[351276754,1738505481037,-552.57,0.00011506,2]
[351276755,1738505481047,-3015.63,0.00011506,2]
[351276756,1738505481056,-500.0,0.00011506,2]
[351276757,1738505481066,-500.0,0.00011506,2]
[351276758,1738505481075,-500.0,0.00011506,2]
[351276759,1738505481085,-635.12,0.00011506,2]
[351276760,1738505481094,-511.08,0.00011506,2]
[351276761,1738505481103,-1112.86,0.00011506,2]
[351276762,1738505481113,-910.85,0.00011506,2]
[351276763,1738505481122,-500.0,0.00011506,2]
[351276764,1738505481131,-500.0,0.00011506,2]
[351276765,1738505481140,-500.0,0.00011506,2]
[351276766,1738505481150,-738.14,0.00011506,2]
[351276767,1738505481160,-500.0,0.00011506,2]
[351276768,1738505481170,-500.0,0.00011506,2]
[351276769,1738505481179,-1482.76,0.00011506,2]
[351276770,1738505481189,-500.0,0.00011506,2]
[351276771,1738505481200,-500.0,0.00011506,2]
[351276772,1738505481209,-500.0,0.00011506,2]
[351276773,1738505481218,-500.0,0.00011506,2]
[351276774,1738505481228,-545.77,0.00011506,2]
[351276775,1738505481237,-500.0,0.00011506,2]
[351276776,1738505481247,-735.2,0.00011506,2]
[351276777,1738505481256,-500.0,0.00011506,2]
[351276778,1738505481266,-717.38,0.00011506,2]
[351276779,1738505481276,-500.0,0.00011506,2]
[351276780,1738505481285,-500.0,0.00011506,2]
[351276781,1738505481294,-500.0,0.00011506,2]
[351276782,1738505481304,-2333.39,0.00011506,2]
[351276783,1738505481313,-500.0,0.00011506,2]
[351276784,1738505481322,-618.28,0.00011506,2]
[351276785,1738505481332,-500.0,0.00011506,2]
[351276786,1738505481341,-500.0,0.00011506,2]
[351276787,1738505481351,-500.0,0.00011506,2]
[351276788,1738505481361,-500.0,0.00011506,2]
[351276789,1738505481370,-500.0,0.00011506,2]
[351276790,1738505481379,-2305.89,0.00011506,2]
[351276791,1738505481389,-500.0,0.00011506,2]
[351276792,1738505481399,-703.3,0.00011506,2]
[351276793,1738505481408,-2217.46,0.00011506,2]
[351276794,1738505481417,-573.42,0.00011506,2]
[351276795,1738505481427,-500.0,0.00011506,2]
[351276796,1738505481437,-500.0,0.00011506,2]
[351276797,1738505481449,-2053.36,0.00011506,2]
[351276798,1738505481458,-1106.04,0.00011506,2]
[351276799,1738505481468,-2139.13,0.00011506,2]
[351276800,1738505481477,-500.0,0.00011506,2]
[351276801,1738505481487,-500.0,0.00011506,2]
[351276802,1738505481496,-500.0,0.00011506,2]
[351276803,1738505481506,-1316.15,0.00011506,2]
[351276804,1738505481516,-500.0,0.00011506,2]
[351276805,1738505481531,-500.0,0.00011506,2]
[351276806,1738505481540,-500.0,0.00011506,2]
[351276807,1738505481549,-343.76731381,0.00011506,2]
[351276808,1738505481559,-500.0,0.00011506,2]
[351276809,1738505481569,-548.83,0.00011506,2]
[351276810,1738505481578,-553.21,0.00011506,2]
[351276811,1738505481587,-525.3,0.00011506,2]
[351276812,1738505481597,-500.0,0.00011506,2]
[351276813,1738505481606,-500.0,0.00011506,2]
[351276814,1738505481616,-2325.54,0.00011506,2]
[351276815,1738505481625,-1109.74,0.00011506,2]
[351276816,1738505481634,-500.44,0.00011506,2]
[351276817,1738505481644,-681.73,0.00011506,2]
[351276818,1738505481653,-500.0,0.00011506,2]
[351276819,1738505481663,-677.93,0.00011506,2]
[351276820,1738505481672,-513.34,0.00011506,2]
[351276821,1738505481682,-500.0,0.00011506,2]
[351276822,1738505481693,-500.0,0.00011506,2]
[351276823,1738505481702,-500.0,0.00011506,2]
[351276824,1738505481711,-1154.2,0.00011506,2]
[351276825,1738505481720,-2022.69,0.00011506,2]
[351276826,1738505481730,-500.0,0.00011506,2]
[351276827,1738505481739,-500.0,0.00011506,2]
[351276828,1738505481748,-685.35,0.00011506,2]
[351276829,1738505481757,-500.0,0.00011506,2]
[351276830,1738505481766,-500.0,0.00011506,2]
[351276831,1738505481775,-312.02122047,0.00011506,2]
[351276832,1738505481785,-500.0,0.00011506,2]
[351276833,1738505481795,-500.0,0.00011506,2]
[351276834,1738505481805,-500.0,0.00011506,2]
[351276835,1738505481814,-550.64,0.00011506,2]
[351276836,1738505481824,-1342.11,0.00011506,2]
[351276837,1738505481834,-500.0,0.00011506,2]
[351276838,1738505481844,-2093.39,0.00011506,2]
[351276839,1738505481853,-880.18,0.00011506,2]
[351276840,1738505481863,-1643.92,0.00011506,2]
[351276841,1738505481873,-500.0,0.00011506,2]
[351276842,1738505481883,-793.33,0.00011506,2]
[351276843,1738505481893,-500.0,0.00011506,2]
[351276844,1738505481903,-500.0,0.00011506,2]
[351276845,1738505481913,-500.0,0.00011506,2]
[351276846,1738505481922,-1232.16,0.00011506,2]
[351276847,1738505481931,-500.0,0.00011506,2]
[351276848,1738505481940,-534.34,0.00011506,2]
[351276849,1738505481953,-588.54,0.00011506,2]
[351276850,1738505481963,-500.0,0.00011506,2]
[351276851,1738505481972,-538.87,0.00011506,2]
[351276852,1738505481981,-793.28,0.00011506,2]
[351276853,1738505481991,-500.0,0.00011506,2]
[351276854,1738505482000,-1592.88,0.00011506,2]
[351276855,1738505482010,-616.53,0.00011506,2]
[351276856,1738505482020,-500.0,0.00011506,2]
[351276857,1738505482029,-500.0,0.00011506,2]
[351276858,1738505482039,-1854.87,0.00011506,2]
[351276859,1738505482048,-1690.33,0.00011506,2]
[351276860,1738505482057,-500.0,0.00011506,2]
[351276861,1738505482067,-500.0,0.00011506,2]
[351276862,1738505482076,-534.43,0.00011506,2]
[351276863,1738505482085,-500.0,0.00011506,2]
[351276864,1738505482094,-535.42801469,0.00011506,2]
[351276865,1738505482103,-508.93,0.00011506,2]
[351276866,1738505482112,-500.0,0.00011506,2]
[351276867,1738505482121,-637.72,0.00011506,2]
[351276868,1738505482131,-500.0,0.00011506,2]
[351276869,1738505482139,-1150.84,0.00011506,2]
[351276870,1738505482148,-508.66,0.00011506,2]
[351276871,1738505482158,-536.8298614,0.00011506,2]
[351276872,1738505482167,-586.07,0.00011506,2]
[351276873,1738505482176,-500.0,0.00011506,2]
[351276874,1738505482186,-800.25,0.00011506,2]
[351276875,1738505482200,-731.54,0.00011506,2]
[351276876,1738505482210,-500.0,0.00011506,2]
[351276877,1738505482220,-1305.07,0.00011506,2]
[351276878,1738505482229,-1841.9,0.00011506,2]
[351276879,1738505482239,-734.22,0.00011506,2]
[351276880,1738505482248,-500.0,0.00011506,2]
[351276881,1738505482257,-500.0,0.00011506,2]
[351276882,1738505482267,-1731.58,0.00011506,2]
[351276883,1738505482277,-573.1,0.00011506,2]
[351276884,1738505482286,-500.0,0.00011506,2]
[351276885,1738505482296,-500.0,0.00011506,2]
[351276886,1738505482305,-1366.78,0.00011506,2]
[351276887,1738505482314,-500.0,0.00011506,2]
[351276888,1738505482324,-500.0,0.00011506,2]
[351276889,1738505482333,-521.42,0.00011506,2]
[351276890,1738505482343,-500.0,0.00011506,2]
[351276891,1738505482353,-1447.06,0.00011506,2]
[351276892,1738505482362,-500.0,0.00011506,2]
[351276893,1738505482372,-955.56,0.00011506,2]
[351276894,1738505482381,-500.0,0.00011506,2]
[351276895,1738505482391,-500.0,0.00011506,2]
[351276896,1738505482401,-904.27,0.00011506,2]
[351276897,1738505482410,-854.39,0.00011506,2]
[351276898,1738505482420,-500.0,0.00011506,2]
[351276899,1738505482429,-2762.56,0.00011506,2]
[351276900,1738505482439,-500.0,0.00011506,2]
[351276901,1738505482451,-500.0,0.00011506,2]
[351276902,1738505482461,-478.93983931,0.00011506,2]
[351276903,1738505482470,-666.98,0.00011506,2]
[351276904,1738505482480,-500.0,0.00011506,2]
[351276905,1738505482490,-783.0,0.00011506,2]
[351276906,1738505482499,-500.0,0.00011506,2]
[351276907,1738505482509,-500.0,0.00011506,2]
[351276908,1738505482520,-2104.01,0.00011506,2]
[351276909,1738505482534,-2287.85,0.00011506,2]
[351276910,1738505482544,-500.0,0.00011506,2]
[351276911,1738505482553,-944.74,0.00011506,2]
[351276912,1738505482565,-505.82,0.00011506,2]
[351276913,1738505482574,-738.27,0.00011506,2]
[351276914,1738505482584,-544.88370238,0.00011506,2]
[351276915,1738505482594,-500.0,0.00011506,2]
[351276916,1738505482604,-1519.92,0.00011506,2]
[351276917,1738505482614,-1297.85,0.00011506,2]
[351276918,1738505482623,-500.0,0.00011506,2]
[351276919,1738505482633,-500.0,0.00011506,2]
[351276920,1738505482644,-500.0,0.00011506,2]
[351276921,1738505482654,-500.0,0.00011506,2]
[351276922,1738505482663,-500.0,0.00011506,2]
[351276923,1738505482673,-500.0,0.00011506,2]
[351276924,1738505482682,-500.0,0.00011506,2]
[351276925,1738505482692,-643.77,0.00011506,2]
[351276926,1738505482702,-784.02,0.00011506,2]
[351276927,1738505482711,-503.60999278,0.00011506,2]
[351276928,1738505482721,-500.0,0.00011506,2]
[351276929,1738505482731,-500.0,0.00011506,2]
[351276930,1738505482741,-500.0,0.00011506,2]
[351276931,1738505482750,-500.0,0.00011506,2]
[351276932,1738505482760,-500.0,0.00011506,2]
[351276933,1738505482770,-500.0,0.00011506,2]
[351276934,1738505482780,-500.0,0.00011506,2]
[351276935,1738505482790,-529.45,0.00011506,2]
[351276936,1738505482800,-500.0,0.00011506,2]
[351276937,1738505482810,-1418.55,0.00011506,2]
[351276938,1738505482820,-500.0,0.00011506,2]
[351276939,1738505482830,-517.07,0.00011506,2]
[351276940,1738505482839,-500.0,0.00011506,2]
[351276941,1738505482849,-2783.69,0.00011506,2]
[351276942,1738505482859,-1420.23,0.00011506,2]
[351276943,1738505482869,-1225.35,0.00011506,2]
[351276944,1738505482879,-2181.51,0.00011506,2]
[351276945,1738505482888,-500.0,0.00011506,2]
[351276946,1738505482898,-500.0,0.00011506,2]
[351276947,1738505482907,-500.0,0.00011506,2]
[351276948,1738505482917,-505.12605704,0.00011506,2]
[351276949,1738505482926,-500.0,0.00011506,2]
[351276950,1738505482936,-942.19,0.00011506,2]
[351276951,1738505482948,-500.0,0.00011506,2]
[351276952,1738505482958,-844.52,0.00011506,2]
[351276953,1738505482968,-507.86,0.00011506,2]
[351276954,1738505482978,-500.0,0.00011506,2]
[351276955,1738505482988,-500.0,0.00011506,2]
[351276956,1738505482998,-1267.86,0.00011506,2]
[351276957,1738505483008,-500.0,0.00011506,2]
[351276958,1738505483017,-515.3591849,0.00011506,2]
[351276959,1738505483027,-500.0,0.00011506,2]
[351276960,1738505483037,-1642.95,0.00011506,2]
[351276961,1738505483047,-500.0,0.00011506,2]
[351276962,1738505483057,-5000.0,0.00011506,2]
[351276963,1738505483067,-632.5,0.00011506,2]
[351276964,1738505483076,-500.0,0.00011506,2]
[351276965,1738505483085,-717.96,0.00011506,2]
[351276966,1738505483095,-862.89,0.00011506,2]
[351276967,1738505483106,-500.0,0.00011506,2]
[351276968,1738505483120,-500.0,0.00011506,2]
[351276969,1738505483130,-978.15,0.00011506,2]
[351276970,1738505483140,-500.0,0.00011506,2]
[351276971,1738505483156,-1851.1,0.00011506,2]